fUST/lending_fUST_20250915
["ID","MTS","AMOUNT","RATE_DAILY","PERIOD"]
[385614769,1757926246476,-1000.0,0.00024521,2]
[385614771,1757926246485,-500.64553915,0.00024521,2]
[385614773,1757926246494,-1181.78990362,0.00024557,2]
[385614775,1757926246503,-847.45018724,0.00024657,3]
[385614777,1757926246513,-625.02571453,0.00024657,3]
[385614779,1757926246523,-520.0,0.00024657,3]
[385614781,1757926246532,-480.0,0.00024657,3]
[385614783,1757926246542,-488.30613404,0.00024657,3]
[385614785,1757926246551,-480.0,0.00024657,3]
[385614787,1757926246560,-483.51737107,0.00024657,3]
[385614788,1757926246569,-480.0,0.00024657,3]
[385614790,1757926246578,-581.65123464,0.00024657,3]
[385614792,1757926246587,-480.0,0.00024657,3]
[385614794,1757926246596,-480.0,0.00024657,3]
[385614796,1757926246605,-151.0,0.00024657,7]
[385614798,1757926246614,-154.626541,0.00024657,7]
[385614800,1757926246623,-152.077863,0.00024657,7]
[385614802,1757926246632,-480.0,0.00024657,3]
[385614804,1757926246642,-486.25168544,0.00024657,3]
[385614806,1757926246650,-151.0,0.00024657,7]
[385614808,1757926246660,-480.0,0.00024657,3]
[385614810,1757926246669,-152.66399,0.00024657,7]
[385614812,1757926246678,-480.0,0.00024657,3]
[385614814,1757926246687,-480.0,0.00024657,3]
[385614816,1757926246696,-480.0,0.00024657,3]
[385614819,1757926246705,-499.68731228,0.00024657,3]
[385614821,1757926246714,-151.0,0.00024657,7]
[385614823,1757926246723,-480.0,0.00024657,3]
[385614824,1757926246733,-480.0,0.00024657,3]
[385614826,1757926246742,-480.0,0.00024657,3]
[385614828,1757926246751,-151.0,0.00024657,7]
[385614831,1757926246761,-500.0,0.00024657,3]
[385614833,1757926246770,-500.0,0.00024657,3]
[385614835,1757926246779,-160.30443001,0.00024657,3]
[385614837,1757926246788,-286.0,0.00024657,7]
[385614838,1757926246797,-480.0,0.00024657,3]
[385614841,1757926246806,-151.0,0.00024657,7]
[385614843,1757926246819,-480.0,0.00024657,3]
[385614845,1757926246830,-151.0,0.00024657,7]
[385614847,1757926246839,-151.0,0.00024657,7]
[385614849,1757926246849,-480.0,0.00024657,3]
[385614851,1757926246859,-415.11056541,0.00024657,3]
[385614853,1757926246868,-480.0,0.00024657,3]
[385614855,1757926246877,-477.72819492,0.00024657,3]
[385614857,1757926246886,-151.0,0.00024657,7]
[385614859,1757926246896,-217.82061966,0.00024657,3]
[385614861,1757926246907,-480.0,0.00024657,3]
[385614863,1757926246916,-559.19,0.00024657,3]
[385614875,1757926247029,-527.66618676,0.00024657,3]
[385614877,1757926247038,-151.0,0.00024657,7]
[385614879,1757926247048,-151.0,0.00024657,7]
[385614881,1757926247057,-488.47667226,0.00024657,3]
[385614883,1757926247067,-480.0,0.00024657,3]
[385614886,1757926247076,-151.0,0.00024657,7]
[385614888,1757926247085,-480.0,0.00024657,3]
[385614890,1757926247095,-480.0,0.00024657,3]
[385614891,1757926247105,-62.44546665,0.00024657,3]
[385614951,1757926340458,1008.29887288,0.000199,2]
[385614955,1757926536199,974.68891047,0.000199,2]
[385614958,1757926721723,1000.0,0.00030264,120]
[385614972,1757927223634,1191.70530033,0.0002015,2]
[385614973,1757927225145,-327.49209049,0.00020319,2]
[385614974,1757927250093,-338.50790951,0.00020319,2]
[385614975,1757927250114,-300.0,0.00020935,2]
[385614976,1757927250136,-142.65965387,0.00020936,2]
[385614977,1757927353111,-300.0,0.00020935,2]
[385614978,1757927353136,-500.0,0.00020936,2]
[385614979,1757927353161,-152.31972723,0.00020936,2]
[385614980,1757927353185,-276.13047645,0.00020936,2]
[385614981,1757927353210,-376.54605434,0.00020936,2]
[385614982,1757927353235,-556.52071729,0.00020936,2]
[385614983,1757927353260,-157.34034613,0.00020936,2]
[385614984,1757927353285,-300.0,0.00020936,2]
[385614985,1757927353308,-1200.0,0.00020936,2]
[385614986,1757927353332,-50000.0,0.00020937,2]
[385614987,1757927353358,-500.0,0.00020938,2]
[385614988,1757927353383,-500.0,0.00020938,2]
[385614989,1757927353408,-500.0,0.00020938,2]
[385614990,1757927353433,-500.0,0.00020938,2]
[385614991,1757927353455,-500.0,0.00020938,2]
[385614992,1757927353478,-500.0,0.00020938,2]
[385614993,1757927353502,-500.0,0.00020938,2]
[385614994,1757927353527,-500.0,0.00020938,2]
[385614995,1757927353553,-500.0,0.00020938,2]
[385614996,1757927353578,-500.0,0.00020938,2]
[385614997,1757927353602,-261.09943099,0.00020938,2]
[385615047,1757927432510,-238.90056901,0.00020938,2]
[385615049,1757927432520,-291.19915817,0.00020938,2]
[385615051,1757927432529,-294.44228855,0.00020972,2]
[385615053,1757927432539,-500.0,0.00020973,2]
[385615055,1757927432551,-988.84387572,0.00021325,2]
[385615057,1757927432561,-3050.5899104,0.00021396,2]
[385615059,1757927432571,-735.13138,0.00021475,2]
[385615061,1757927432580,-800.0,0.00021918,2]
[385615063,1757927432590,-300.0,0.00022362,2]
[385615065,1757927432599,-300.0,0.00022362,2]
[385615067,1757927432608,-300.0,0.00022362,2]
[385615069,1757927432618,-300.0,0.00022362,2]
[385615071,1757927432627,-1200.0,0.00022362,2]
[385615073,1757927432637,-12792.9698051,0.00022363,2]
[385615075,1757927432646,-4832.71355639,0.00022368,2]
[385615119,1757927438343,-985.58892377,0.00022368,2]
[385615120,1757927438356,-4021.99241303,0.00022368,2]
[385615121,1757927438371,-159.70510681,0.00022368,2]
[385615122,1757927438380,-206.10960199,0.00022447,2]
[385615123,1757927438389,-477.64323255,0.00022448,2]
[385615124,1757927438399,-9592.17326852,0.00022448,2]
[385615125,1757927438410,-2232.7606224,0.00022448,2]
[385615126,1757927438422,-13810.93865099,0.00022448,2]
[385615127,1757927438432,-5219.59562544,0.000229,2]
[385615128,1757927438441,-191.791733,0.00022957,2]
[385615129,1757927438451,-160.0,0.00023,2]
[385615131,1757927438460,-217.82061966,0.00023182,2]
[385615133,1757927438469,-160.0,0.00023182,2]
[385615135,1757927438478,-891.47796198,0.00023561,2]
[385615137,1757927438487,-10000.0,0.000236,7]
[385615139,1757927438497,-800.0,0.00023661,2]
[385615141,1757927438506,-150.0,0.00024,2]
[385615143,1757927438516,-233.24851325,0.00024,7]
[385615145,1757927438526,-680.6786152,0.00024112,2]
[385615147,1757927438535,-464.38942816,0.00024152,2]
[385615149,1757927438544,-420.0,0.00024291,2]
[385615151,1757927438553,-4234.5232292,0.000244,2]
[385615153,1757927438565,-206.0,0.00024405,2]
[385615155,1757927438574,-151.22990955,0.000245,2]
[385615157,1757927438583,-891.47796198,0.00024504,2]
[385615159,1757927438592,-2493.51,0.00024556,2]
[385615161,1757927438601,-58583.42036463,0.00024557,2]
[385615163,1757927438611,-500.0,0.00024573,2]
[385615164,1757927438620,-10000.0,0.000246,7]
[385615165,1757927438630,-151.22990955,0.000246,2]
[385615166,1757927438639,-800.0,0.00024625,2]
[385615167,1757927438649,-368.78,0.00024647,3]
[385615168,1757927438659,-160.0,0.00024657,3]
[385615169,1757927438669,-217.82061966,0.00024657,3]
[385615170,1757927438678,-192.81884626,0.00024657,3]
[385615171,1757927438689,-480.68590506,0.00024657,3]
[385615172,1757927438698,-160.0,0.00024657,3]
[385615173,1757927438708,-480.0,0.00024657,3]
[385615174,1757927438717,-480.0,0.00024657,3]
[385615175,1757927438726,-151.255761,0.00024657,7]
[385615176,1757927438735,-151.0,0.00024657,7]
[385615177,1757927438744,-169.347246,0.00024657,7]
[385615179,1757927438753,-480.0,0.00024657,3]
[385615181,1757927438762,-322.14810841,0.00024657,3]
[385615183,1757927438771,-151.0,0.00024657,7]
[385615185,1757927438781,-152.102879,0.00024657,7]
[385615187,1757927438790,-535.89,0.00024657,3]
[385615189,1757927438799,-151.0,0.00024657,7]
[385615191,1757927438809,-480.0,0.00024657,3]
[385615192,1757927438821,-480.0,0.00024657,3]
[385615194,1757927438831,-480.0,0.00024657,3]
[385615196,1757927438840,-151.0,0.00024657,7]
[385615198,1757927438850,-289.23623135,0.00024657,3]
[385615200,1757927438860,-480.0,0.00024657,3]
[385615202,1757927438869,-151.0,0.00024657,7]
[385615204,1757927438878,-480.0,0.00024657,3]
[385615206,1757927438888,-480.0,0.00024657,3]
[385615208,1757927438897,-480.0,0.00024657,3]
[385615210,1757927438906,-480.0,0.00024657,3]
[385615212,1757927438916,-480.0,0.00024657,3]
[385615214,1757927438925,-480.0,0.00024657,3]
[385615216,1757927438934,-152.598955,0.00024657,7]
[385615218,1757927438944,-480.0,0.00024657,3]
[385615220,1757927438953,-151.0,0.00024657,7]
[385615222,1757927438962,-480.0,0.00024657,3]
[385615224,1757927438971,-480.0,0.00024657,3]
[385615226,1757927438980,-1432.2,0.00024657,3]
[385615228,1757927438990,-1432.2,0.00024657,3]
[385615231,1757927439000,-1432.2,0.00024657,3]
[385615233,1757927439009,-1432.2,0.00024657,3]
[385615235,1757927439018,-1432.2,0.00024657,3]
[385615236,1757927439027,-1432.2,0.00024657,3]
[385615238,1757927439036,-1432.2,0.00024657,3]
[385615240,1757927439045,-1432.2,0.00024657,3]
[385615242,1757927439055,-1432.2,0.00024657,3]
[385615244,1757927439065,-1432.2,0.00024657,3]
[385615246,1757927439074,-490.25080128,0.00024657,3]
[385615248,1757927439083,-603.39906976,0.00024657,3]
[385615250,1757927439093,-480.0,0.00024657,3]
[385615252,1757927439102,-480.0,0.00024657,3]
[385615254,1757927439112,-480.0,0.00024657,3]
[385615256,1757927439122,-368.64,0.00024657,3]
[385615258,1757927439131,-480.0,0.00024657,3]
[385615260,1757927439140,-480.0,0.00024657,3]
[385615262,1757927439150,-480.0,0.00024657,3]
[385615264,1757927439159,-161.485476,0.00024657,7]
[385615266,1757927439168,-480.0,0.00024657,3]
[385615269,1757927439178,-480.0,0.00024657,3]
[385615271,1757927439187,-151.0,0.00024657,7]
[385615273,1757927439196,-151.0,0.00024657,7]
[385615275,1757927439205,-151.0,0.00024657,7]
[385615277,1757927439215,-480.0,0.00024657,3]
[385615279,1757927439223,-151.0,0.00024657,7]
[385615281,1757927439233,-310.17698498,0.00024657,3]
[385615283,1757927439242,-480.0,0.00024657,3]
[385615285,1757927439251,-297.29777641,0.00024657,3]
[385615287,1757927439260,-151.0,0.00024657,7]
[385615289,1757927439269,-151.0,0.00024657,7]
[385615291,1757927439278,-480.0,0.00024657,3]
[385615293,1757927439288,-151.0,0.00024657,7]
[385615294,1757927439297,-161.066428,0.00024657,7]
[385615296,1757927439306,-8712.07,0.00024657,3]
[385615298,1757927439317,-489.83697105,0.00024657,3]
[385615300,1757927439326,-480.0,0.00024657,3]
[385615302,1757927439335,-485.53160332,0.00024657,3]
[385615304,1757927439344,-492.94734075,0.00024657,3]
[385615306,1757927439354,-1635.69,0.00024657,3]
[385615308,1757927439366,-151.0,0.00024657,7]
[385615310,1757927439375,-480.0,0.00024657,3]
[385615312,1757927439384,-153.126038,0.00024657,7]
[385615314,1757927439393,-483.06751349,0.00024657,3]
[385615316,1757927439402,-592.44139749,0.00024657,3]
[385615318,1757927439413,-486.31542985,0.00024657,3]
[385615320,1757927439422,-487.24382758,0.00024657,3]
[385615323,1757927439431,-480.0,0.00024657,3]
[385615325,1757927439443,-480.0,0.00024657,3]
[385615326,1757927439453,-486.37764132,0.00024657,3]
[385615329,1757927439462,-480.0,0.00024657,3]
[385615331,1757927439471,-151.0,0.00024657,7]
[385615333,1757927439480,-151.0,0.00024657,7]
[385615335,1757927439489,-537.44579149,0.00024657,3]
[385615337,1757927439498,-480.0,0.00024657,3]
[385615339,1757927439507,-480.0,0.00024657,3]
[385615341,1757927439517,-151.0,0.00024657,7]
[385615343,1757927439526,-480.0,0.00024657,3]
[385615345,1757927439535,-490.26370235,0.00024657,3]
[385615346,1757927439544,-151.0,0.00024657,7]
[385615349,1757927439555,-617.16,0.00024657,3]
[385615350,1757927439564,-151.0,0.00024657,7]
[385615352,1757927439574,-500.0,0.00024657,2]
[385615354,1757927439583,-500.0,0.00024657,2]
[385615356,1757927439592,-154.678902,0.00024657,7]
[385615359,1757927439602,-500.0,0.00024657,2]
[385615361,1757927439611,-500.0,0.00024657,2]
[385615363,1757927439620,-500.0,0.00024657,2]
[385615365,1757927439629,-500.0,0.00024657,2]
[385615367,1757927439639,-164.03355774,0.00024657,2]
[385615369,1757927439647,-153.914471,0.00024657,7]
[385615371,1757927439657,-480.0,0.00024657,3]
[385615373,1757927439666,-480.0,0.00024657,3]
[385615375,1757927439675,-557.1,0.00024657,3]
[385615377,1757927439684,-480.0,0.00024657,3]
[385615379,1757927439693,-480.0,0.00024657,3]
[385615381,1757927439702,-151.0,0.00024657,7]
[385615383,1757927439711,-151.389783,0.00024657,7]
[385615385,1757927439720,-152.45144,0.00024657,7]
[385615387,1757927439730,-480.0,0.00024657,3]
[385615389,1757927439739,-480.0,0.00024657,3]
[385615390,1757927439748,-480.0,0.00024657,3]
[385615393,1757927439758,-151.0,0.00024657,7]
[385615394,1757927439767,-1458.67,0.00024657,3]
[385615396,1757927439776,-524.45,0.00024657,3]
[385615398,1757927439786,-480.0,0.00024657,3]
[385615400,1757927439795,-482.28150617,0.00024657,3]
[385615402,1757927439804,-460.01735215,0.00024657,3]
[385615404,1757927439814,-480.0,0.00024657,3]
[385615407,1757927439824,-480.0,0.00024657,3]
[385615409,1757927439833,-480.0,0.00024657,3]
[385615410,1757927439842,-233.24851325,0.00024657,3]
[385615413,1757927439852,-480.0,0.00024657,3]
[385615415,1757927439861,-480.0,0.00024657,3]
[385615416,1757927439870,-480.0,0.00024657,3]
[385615418,1757927439879,-480.0,0.00024657,3]
[385615420,1757927439888,-155.163426,0.00024657,7]
[385615433,1757927440022,-151.0,0.00024657,7]
[385615435,1757927440042,-167.923282,0.00024657,7]
[385615437,1757927440053,-480.0,0.00024657,3]
[385615439,1757927440063,-480.0,0.00024657,3]
[385615441,1757927440072,-481.30163201,0.00024657,3]
[385615443,1757927440081,-551.21201223,0.00024657,3]
[385615445,1757927440091,-514.0,0.00024657,3]
[385615447,1757927440101,-151.0,0.00024657,7]
[385615449,1757927440110,-151.0,0.00024657,7]
[385615451,1757927440120,-152.545655,0.00024657,7]
[385615453,1757927440129,-482.21800352,0.00024657,3]
[385615455,1757927440140,-480.0,0.00024657,3]
[385615457,1757927440149,-480.0,0.00024657,3]
[385615459,1757927440158,-480.0,0.00024657,3]
[385615461,1757927440168,-151.0,0.00024658,2]
[385615463,1757927440178,-151.0,0.00024658,2]
[385615465,1757927440187,-500.0,0.00024658,2]
[385615467,1757927440196,-157.0,0.00024658,2]
[385615469,1757927440207,-151.0,0.00024658,2]
[385615471,1757927440217,-151.0,0.00024658,2]
[385615473,1757927440226,-198.0,0.00024658,2]
[385615475,1757927440236,-151.0,0.00024658,2]
[385615477,1757927440246,-500.0,0.00024658,2]
[385615479,1757927440256,-151.0,0.00024658,2]
[385615481,1757927440266,-198.0,0.00024658,2]
[385615483,1757927440276,-151.0,0.00024658,2]
[385615485,1757927440285,-500.0,0.00024658,2]
[385615487,1757927440295,-153.69523048,0.00024658,2]
[385615489,1757927440304,-151.0,0.00024658,2]
[385615491,1757927440314,-151.0,0.00024658,2]
[385615493,1757927440323,-800.0,0.00024674,2]
[385615495,1757927440332,-151.22990955,0.000247,2]
[385615497,1757927440342,-168.0,0.00024712,2]
[385615499,1757927440351,-151.8799284,0.00024718,2]
[385615502,1757927440365,-847.45018724,0.00024737,2]
[385615504,1757927440374,-233.24851325,0.00024737,2]
[385615505,1757927440384,-160.0,0.00024739,2]
[385615507,1757927440393,-800.0,0.00024749,2]
[385615509,1757927440404,-800.0,0.00024755,2]
[385615511,1757927440414,-160.0,0.00024768,2]
[385615513,1757927440423,-217.82061966,0.00024775,7]
[385615515,1757927440436,-16538.12979436,0.0002479,2]
[385615517,1757927440445,-151.0,0.0002479,7]
[385615519,1757927440455,-151.0,0.00024799,7]
[385615522,1757927440465,-151.0,0.00024799,7]
[385615524,1757927440474,-1432.2,0.00024799,3]
[385615526,1757927440484,-1432.2,0.00024799,3]
[385615528,1757927440494,-151.0,0.000248,6]
[385615530,1757927440504,-8724.67021933,0.000248,3]
[385615532,1757927440514,-151.0,0.000248,7]
[385615534,1757927440523,-151.0,0.000248,7]
[385615536,1757927440532,-151.0,0.000248,7]
[385615538,1757927440541,-151.0,0.000248,7]
[385615540,1757927440550,-151.0,0.000248,7]
[385615542,1757927440559,-151.0,0.000248,6]
[385615544,1757927440569,-151.0,0.000248,6]
[385615546,1757927440577,-151.0,0.000248,7]
[385615548,1757927440586,-151.0,0.000248,7]
[385615550,1757927440595,-151.0,0.000248,7]
[385615552,1757927440604,-151.0,0.000248,7]
[385615554,1757927440613,-151.0,0.000248,7]
[385615556,1757927440622,-151.0,0.000248,7]
[385615558,1757927440631,-151.0,0.000248,7]
[385615560,1757927440640,-151.0,0.000248,7]
[385615562,1757927440650,-198.48026,0.000248,7]
[385615564,1757927440659,-151.0,0.000248,7]
[385615566,1757927440668,-151.0,0.000248,7]
[385615568,1757927440677,-11406.8914634,0.000248,2]
[385615569,1757927440686,-151.22990955,0.000248,2]
[385615572,1757927440696,-151.0,0.000248,7]
[385615574,1757927440705,-159.366818,0.000248,7]
[385615576,1757927440714,-151.0,0.00024814,7]
[385615578,1757927440723,-151.0,0.00024814,7]
[385615580,1757927440733,-151.0,0.00024814,7]
[385615582,1757927440742,-151.0,0.00024814,7]
[385615584,1757927440751,-151.0,0.00024814,7]
[385615586,1757927440762,-2851.72286584,0.00024863,2]
[385615588,1757927440772,-800.0,0.00024866,2]
[385615590,1757927440781,-1432.2,0.00024872,3]
[385615592,1757927440790,-590.89495181,0.00024872,2]
[385615594,1757927440800,-500.0,0.00024873,2]
[385615596,1757927440809,-500.0,0.00024873,2]
[385615598,1757927440819,-500.0,0.00024873,2]
[385615600,1757927440828,-500.0,0.00024873,2]
[385615602,1757927440838,-500.0,0.00024873,2]
[385615604,1757927440847,-500.0,0.00024873,2]
[385615606,1757927440856,-500.0,0.00024873,2]
[385615608,1757927440866,-230.15643153,0.00024873,2]
[385615610,1757927440876,-919.70510039,0.00024873,2]
[385615612,1757927440885,-1432.2,0.00024889,3]
[385615614,1757927440894,-1432.2,0.00024889,3]
[385615616,1757927440904,-160.0,0.0002489,7]
[385615618,1757927440913,-153.518813,0.0002489,7]
[385615620,1757927440923,-151.649899,0.0002489,7]
[385615622,1757927440932,-151.0,0.0002489,7]
[385615624,1757927440941,-152.337344,0.0002489,7]
[385615626,1757927440950,-188.26456,0.0002489,7]
[385615628,1757927440960,-155.099488,0.0002489,7]
[385615630,1757927440970,-2851.72286584,0.0002489,2]
[385615632,1757927440979,-1432.2,0.00024896,3]
[385615634,1757927440989,-983.79660737,0.00024896,2]
[385615636,1757927440998,-155.462,0.00024899,2]
[385615638,1757927441008,-1432.2,0.00024899,3]
[385615640,1757927441017,-1432.2,0.00024899,3]
[385615642,1757927441027,-1432.2,0.00024899,3]
[385615644,1757927441036,-1432.2,0.00024899,3]
[385615646,1757927441045,-1432.2,0.00024899,3]
[385615648,1757927441054,-1432.2,0.00024899,3]
[385615650,1757927441064,-1432.2,0.00024899,3]
[385615652,1757927441075,-1432.35,0.00024899,3]
[385615654,1757927441084,-151.0,0.00024899,7]
[385615656,1757927441093,-30836.23,0.000249,7]
[385615658,1757927441102,-2136.68,0.000249,7]
[385615660,1757927441112,-1310.5,0.000249,7]
[385615662,1757927441121,-847.45018724,0.000249,7]
[385615664,1757927441132,-891.82,0.000249,7]
[385615666,1757927441141,-151.0,0.000249,7]
[385615668,1757927441153,-160.0,0.000249,7]
[385615670,1757927441162,-500.0,0.000249,5]
[385615672,1757927441172,-500.0,0.000249,5]
[385615674,1757927441183,-500.0,0.000249,10]
[385615676,1757927441192,-500.0,0.000249,5]
[385615678,1757927441201,-151.0,0.000249,7]
[385615680,1757927441210,-151.0,0.000249,5]
[385615681,1757927441220,-183.330445,0.000249,7]
[385615683,1757927441231,-151.0,0.000249,7]
[385615686,1757927441245,-151.0,0.000249,7]
[385615687,1757927441262,-151.0,0.000249,7]
[385615689,1757927441271,-151.0,0.000249,7]
[385615691,1757927441281,-151.0,0.000249,7]
[385615693,1757927441290,-151.0,0.000249,7]
[385615695,1757927441300,-151.0,0.000249,7]
[385615697,1757927441309,-282.022098,0.000249,7]
[385615699,1757927441319,-151.0,0.000249,7]
[385615701,1757927441329,-151.0,0.000249,7]
[385615703,1757927441339,-151.0,0.000249,7]
[385615705,1757927441349,-151.0,0.000249,7]
[385615707,1757927441359,-151.0,0.000249,7]
[385615709,1757927441372,-151.0,0.000249,7]
[385615711,1757927441382,-151.0,0.000249,7]
[385615714,1757927441392,-396073.89627711,0.000249,2]
[385615716,1757927441408,-434.60648948,0.000249,2]
[385615718,1757927441420,-531.25030927,0.000249,2]
[385615730,1757927441517,-352.86775516,0.000249,2]
[385615732,1757927441529,-450.76400687,0.000249,2]
[385616068,1757927444260,-923.51340604,0.000243,2]
[385616075,1757927444315,-995.91268962,0.000243,2]
[385616077,1757927444328,-70.35302034,0.000243,2]
[385616079,1757927444338,-1000.0,0.000248,2]
[385616081,1757927444347,-223929.64697996,0.000249,2]
[385616084,1757927444374,-476.48659396,0.000249,2]
[385616326,1757927447009,-383.42053055,0.00024657,3]
[385616328,1757927447018,-60.78946945,0.000249,2]
[385616330,1757927447029,-389.805,0.000249,2]
[385616332,1757927447040,-22958.0,0.000249,2]
[385616334,1757927447051,-28622.43324302,0.000249,2]
[385622526,1757928437093,-609.14877616,0.00021473,2]
[385622527,1757928437114,-206.59423064,0.0002159,2]
[385622528,1757928437133,-304.04980208,0.0002169,2]
[385622529,1757928437153,-160.0,0.00023182,2]
[385622530,1757928437173,-2937.56604179,0.00023314,2]
[385622531,1757928437201,-626.35065488,0.00023314,2]
[385622536,1757928497731,2243.83721078,0.0002,30]
[385622542,1757928554102,-1248.06946103,0.0002061,2]
[385622572,1757928632976,-150.0,0.000206,5]
[385622574,1757928632986,-118.17241087,0.0002061,2]
[385622576,1757928632995,-870.62893171,0.00022535,2]
[385622578,1757928633007,-28.24190129,0.00022535,2]
[385622580,1757928633016,-2172.89790217,0.0002285,2]
[385622681,1757928638915,-2827.10209783,0.0002285,2]
[385622684,1757928638925,-300.0,0.0002308,2]
[385622686,1757928638936,-594.0,0.0002308,2]
[385622688,1757928638947,-5000.0,0.00023081,2]
[385622690,1757928638961,-1092.75685243,0.00023314,2]
[385622692,1757928638972,-1509.97866696,0.0002379,2]
[385622695,1757928638985,-562.54637893,0.0002379,2]
[385622697,1757928638996,-935.03087017,0.00023874,2]
[385622699,1757928639008,-18.56300404,0.00023973,2]
[385622701,1757928639023,-481.43699596,0.00023973,2]
[385622703,1757928639034,-500.0,0.00023973,2]
[385622706,1757928639044,-500.0,0.00023973,2]
[385622708,1757928639055,-500.0,0.00023973,2]
[385622710,1757928639066,-500.0,0.00023973,2]
[385622712,1757928639075,-500.0,0.00023973,2]
[385622714,1757928639085,-500.0,0.00023973,2]
[385622716,1757928639095,-527.68154543,0.00023973,2]
[385622718,1757928639106,-500.0,0.00023973,2]
[385622720,1757928639116,-500.0,0.00023973,2]
[385622722,1757928639126,-500.0,0.00023973,2]
[385622724,1757928639137,-500.0,0.00023973,2]
[385622726,1757928639148,-32.12470861,0.00023973,2]
[385622729,1757928639166,-467.87529139,0.00023973,2]
[385622730,1757928639177,-173.3851049,0.00023973,2]
[385622731,1757928639188,-500.0,0.00023973,2]
[385622732,1757928639198,-183.38261459,0.00023973,2]
[385622733,1757928639209,-76.57129367,0.00023973,2]
[385622734,1757928639223,-193.89497995,0.00023973,2]
[385622735,1757928639236,-12123.40483879,0.00023974,2]
[385622736,1757928639248,-34803.03978938,0.00023974,2]
[385622737,1757928639262,-266.8,0.00023974,2]
[385622877,1757928640658,-359.99275684,0.00023974,2]
[385622884,1757928640715,-2446.76261499,0.00023974,2]
[385622886,1757928640726,-536.0,0.00023974,2]
[385622888,1757928640736,-250.0,0.00023976,2]
[385622890,1757928640746,-250.0,0.00023976,2]
[385622893,1757928640756,-250.0,0.00023976,2]
[385622895,1757928640768,-250.0,0.00023976,2]
[385622897,1757928640779,-260.5317625,0.00023976,2]
[385622899,1757928640792,-260.26542997,0.00023976,2]
[385622902,1757928640802,-500.0,0.00023976,2]
[385622904,1757928640814,-500.0,0.00023976,2]
[385622906,1757928640824,-500.0,0.00023976,2]
[385622908,1757928640835,-500.0,0.00023976,2]
[385622910,1757928640845,-500.0,0.00023976,2]
[385622912,1757928640856,-510.34665233,0.00023976,2]
[385622914,1757928640866,-11369.49315952,0.0002399,2]
[385622916,1757928640880,-3191.75932876,0.0002399,2]
[385622919,1757928640893,-10208.08248424,0.0002399,2]
[385623125,1757928643788,-5585.23742232,0.0002399,2]
[385623127,1757928643844,-3179.80161505,0.0002399,2]
[385623141,1757928646648,-3073.20187277,0.0002399,2]
[385623144,1757928646661,-2347.9048,0.0002399,2]
[385623149,1757928646704,-13619.76969366,0.0002399,2]
[385623151,1757928646714,-2013.66,0.00024,2]
[385623153,1757928646724,-457.84320298,0.00024,2]
[385623155,1757928646735,-1385.83003268,0.00024011,2]
[385623157,1757928646745,-233.24851325,0.00024135,2]
[385623160,1757928646756,-309.59295211,0.00024152,2]
[385623162,1757928646767,-5000.0,0.00024209,2]
[385623164,1757928646777,-168.0,0.00024472,2]
[385623166,1757928646787,-662.38093203,0.000245,2]
[385623168,1757928646798,-3003.57072794,0.000245,5]
[385623170,1757928646810,-200.0,0.000246,2]
[385623172,1757928646822,-2136.91485119,0.00024625,2]
[385623174,1757928646833,-737.6,0.00024648,3]